Cogmind - Beta 14 @@@ ROGUE MODE // 2024.08.26 @ 11:45:22 Player: Minty Result: Destroyed by S-10 Pest with Light Assault Rifle Performance ------------- Evolutions (0) 0 Regions Visited (2) 400 Robots Destroyed (15) 75 Value Destroyed (197) 197 Prototype IDs (0) 0 Alien Tech Used (0) 0 Bonus (0) 0 TOTAL SCORE: 672 Bonus ------- None Cogmind --------- Core Integrity 0/250 Matter 296/300 Energy 100/100 System Corruption 0% Temperature Cool (0) Movement Rolling (80) Location -10/Mines Parts ------- > --- POWER (1) -------- (None) > --- PROPULSION (2) --- Wheel > --- UTILITY (2) ------ Small Storage Unit Signal Interpreter > --- WEAPON (2) ------- Makeshift Spear > --- INVENTORY (8) ---- Wheel Hover Unit Medium Storage Unit Improved Terrain Scanner Seismic Detector Hacking Suite EM Pulse Gun Peak State ------------ > --- POWER ------------ (None) > --- PROPULSION ------- Wheel Wheel > --- UTILITY ---------- Small Storage Unit Signal Interpreter > --- WEAPON ----------- Makeshift Spear > --- INVENTORY -------- Wheel Hover Unit Medium Storage Unit Improved Terrain Scanner Seismic Detector Hacking Suite EM Pulse Gun [Rating: 9] Favorites ----------- Power Light Ion Engine Engine Light Ion Engine Propulsion Hover Unit Leg Aluminum Leg Wheel Wheel Hover Unit Hover Unit Utility Small Storage Unit Device Seismic Detector Storage Small Storage Unit Processor Signal Interpreter Weapon Small Laser Energy Gun Small Laser Ballistic Gun Assault Rifle Piercing Weapon Makeshift Spear Build | -11 -10 -10 ------- Run | Yrd Mat Min Slots Evolved . | . . . Power . | . . . Propulsion . | . . . Utility . | . . . Weapon . | . . . Parts Attached 17 | 4 11 2 Power 2 | . 2 . Engine 2 | . 2 . Core . | . . . Reactor . | . . . Propulsion 10 | 3 7 . Treads . | . . . Leg . | . . . Wheel 6 | 3 3 . Hover 4 | . 4 . Flight . | . . . Utility 2 | 1 . 1 Device 1 | 1 . . Storage . | . . . Processor 1 | . . 1 Hackware . | . . . Protection . | . . . Artifact . | . . . Weapon 3 | . 2 1 Energy Gun 2 | . 2 . Energy Cannon . | . . . Ballistic Gun . | . . . Ballistic Cannon . | . . . Launcher . | . . . Special Weapon . | . . . Impact Weapon . | . . . Slashing Weapon . | . . . Piercing Weapon 1 | . . 1 Special Melee Weapon . | . . . Unidentified Prototypes . | . . . Parts Lost 8 | . 7 1 Power 1 | . 1 . Propulsion 4 | . 3 1 Utility 1 | . 1 . Weapon 2 | . 2 . Highest Loss Streak 3 | . 3 1 To Critical Strikes . | . . . Average Slot Usage (%) 87 | . 92 49 Engine 10 | . 11 . Wheel 7 | . 5 24 Hover 17 | . 19 . Device 10 | . 11 . Storage 14 | . 14 14 Energy Gun 12 | . 13 . Ballistic Gun 12 | . 13 . Peak Build Rating 9 | 8 8 9 Average Rating 7 | 6 7 7 On Entrance 6 | 6 8 4 Naked Turns . | . . . Heaviest Build 12 | 12 12 7 Greatest Support 26 | 26 20 20 Greatest Overweight (x) 1 | . 1 . Average Overweight (x) . | . . . Largest Inventory Capacity 8 | 8 8 8 Average Capacity 8 | 8 8 8 Most Carried 8 | 8 8 7 Average Carried 7 | 6 7 7 Final Capacity 8 | 8 8 8 Final Carried 8 | 8 7 7 Class Distribution -------------------- 74% | Mutant 25% | Scavenger-Mutant Dominant Class ---------------- Mutant | -10/Materials Mutant | -10/Mines Resources | -11 -10 -10 ----------- Run | Yrd Mat Min Matter Collected 441 | 272 130 39 Remotely . | . . . Salvage Created 364 | 168 196 . Parts 34 | 13 21 . Haulers Intercepted . | . . . Recyclers Shooed 1 | . 1 . Parts Field Recycled . | . . . Retrieved Matter . | . . . Parts Self-Destructed . | . . . Prevented . | . . . Kills | -11 -10 -10 ------- Run | Yrd Mat Min Combat Hostiles Destroyed 7 | . 7 . Guns 7 | . 7 . Classes Destroyed 6 | 3 3 . Worker 3 | 2 1 . Tunneler 2 | 2 . . Recycler 1 | 1 . . Operator 2 | . 2 . Swarmer 4 | . 4 . Grunt 3 | . 3 . Best Kill Streak 7 | 2 7 . Combat Bots Only 3 | . 3 . Max Kills in Single Turn 1 | 1 1 . Gunslinging . | . . . Exploded . | . . . Melee . | . . . Uniques/NPCs Destroyed . | . . . Combat | -11 -10 -10 -------- Run | Yrd Mat Min Hostile Shots Fired 123 | . 115 8 Missed 40 | . 37 3 Damage Taken 790 | . 748 42 Core 255 | . 221 34 Absorbed by Shields . | . . . Regen/Repaired (Parts) 15 | . 15 . Core Remaining (%) 100 | 100 . . Volleys Fired 47 | 14 33 . Largest 2 | 2 2 . Hottest 60 | 60 60 . Shots Fired 87 | 26 61 . Gun 87 | 26 61 . Cannon . | . . . Launcher . | . . . Special . | . . . Kinetic 42 | 14 28 . Thermal 45 | 12 33 . Explosive . | . . . Electromagnetic . | . . . Robot Hit Streak 7 | 5 7 . Robot Miss Streak 3 | 3 3 . Penetration Max . | . . . Secondary Targets . | . . . Shots Hit Robots 47 | 13 33 1 Core Hits 23 | 6 17 . Critical Kills . | . . . Critical Parts Destroyed . | . . . Critical Strikes . | . . . Melee Attacks 4 | . . 4 Impact . | . . . Slashing . | . . . Piercing 4 | . . 4 Sneak Attacks . | . . . Combat Hostiles . | . . . Follow-up Attacks . | . . . Damage Inflicted 600 | 176 390 34 Guns 563 | 176 387 . Cannons . | . . . Explosions . | . . . Melee 34 | . . 34 Ramming 3 | . 3 . Kinetic 291 | 109 182 . Thermal 272 | 67 205 . Explosive . | . . . Electromagnetic . | . . . Impact . | . . . Slashing . | . . . Piercing 34 | . . 34 Highest Corruption . | . . . Average Corruption . | . . . Corruption Purged . | . . . Corruption Blocked . | . . . Overload Shots . | . . . Overflow Damage . | . . . Projectiles . | . . . Explosions . | . . . Melee . | . . . Knockbacks . | . . . Impact . | . . . Kinetic . | . . . Secondary . | . . . Self-Inflicted Damage 1 | . 1 . Shots . | . . . Rammed 3 | . 3 . Targets Rammed 3 | . 3 . Kicked . | . . . Crushed . | . . . Highest Temperature 88 | . 88 . Average Temperature 36 | . 36 . Received Heat Transfer 210 | . 210 . Siege Activations . | . . . Robots Corrupted . | . . . Combat Hostiles . | . . . Parts Fried . | . . . Impact Corruptions . | . . . Robots Melted . | . . . Combat Hostiles . | . . . Parts Melted . | . . . Heat Transferred 625 | 150 475 . Parts Sabotaged . | . . . Parts Stolen . | . . . Parts Stripped . | . . . Power Chain Reactions . | . . . Alert | -11 -10 -10 ------- Run | Yrd Mat Min Peak Influence 223 | 25 223 102 Initial 82 | . 16 82 Average 84 | 10 112 80 Maximum Alert Level 1 | . 1 . Low Security (%) 90 | 100 85 100 Level 1 9 | . 14 . Level 2 . | . . . Level 3 . | . . . Level 4 . | . . . Level 5 . | . . . High Security . | . . . Max Security . | . . . Squads Dispatched 2 | . 2 . Investigation 1 | . 1 . Extermination . | . . . Reinforcement 1 | . 1 . Assault . | . . . Garrison . | . . . Intercept . | . . . Searches Triggered . | . . . Construction Impeded . | . . . Haulers Reinforced . | . . . Active Scanning Responses . | . . . Cargo Convoy Interrupts . | . . . Stealth | -11 -10 -10 --------- Run | Yrd Mat Min Distress Signals 6 | . 6 . Communications Jammed . | . . . Distress Signals . | . . . Times Spotted 22 | . 19 3 Peak Tracking Total 9 | . 9 3 Tactical Retreats 3 | . 2 1 Traps | -11 -10 -10 ------- Run | Yrd Mat Min Traps Triggered 1 | . 1 . Indirectly . | . . . Trap Hack Attempts . | . . . Triggered . | . . . Disarmed . | . . . Reprogrammed . | . . . Reused . | . . . Traps Extracted . | . . . Installed . | . . . Triggered . | . . . Machines | -11 -10 -10 ---------- Run | Yrd Mat Min Machines Disabled . | . . . Max in Single Turn . | . . . Machines Repaired . | . . . Machines Dismantled . | . . . Machines Sabotaged . | . . . Overloaded Fab Kills . | . . . Hacking | -11 -10 -10 --------- Run | Yrd Mat Min Machines Accessed 1 | . 1 . Terminals . | . . . Fabricators . | . . . Repair Stations 1 | . 1 . Recycling Units . | . . . Scanalyzers . | . . . Garrison Access . | . . . Total Hacks 2 | . 2 . Successful 2 | . 2 . Failed . | . . . Catastrophic . | . . . Database Lockouts . | . . . Manual . | . . . Terminals . | . . . Fabricators . | . . . Repair Stations 2 | . 2 . Recycling Units . | . . . Scanalyzers . | . . . Garrison Access . | . . . Terminal Hacks . | . . . Fabricator Hacks . | . . . Repair Station Hacks 2 | . 2 . Scan Component 1 | . 1 . Repair 1 | . 1 . Recycling Unit Hacks . | . . . Scanalyzer . | . . . Garrison Access Hacks . | . . . Unauthorized Hacks . | . . . Terminals . | . . . Fabricators . | . . . Repair Stations . | . . . Recycling Units . | . . . Scanalyzers . | . . . Garrison Access . | . . . Data Cores Recovered 1 | . 1 . Used . | . . . Hacking Detections . | . . . Full Trace Events . | . . . Feedback Events . | . . . Feedback Blocked . | . . . Robot Schematics Acquired . | . . . Robots Built . | . . . Authchips . | . . . Time . | . . . Total Robot Build Rating . | . . . Part Schematics Acquired . | . . . Parts Built . | . . . Authchips . | . . . Time . | . . . Total Part Build Rating . | . . . Parts Repaired 1 | . 1 . Time 26 | . 26 . Parts Recycled . | . . . Recycled Matter . | . . . Retrieved Matter . | . . . Retrieved Components . | . . . Parts Scanalyzed . | . . . Part Schematics Acquired . | . . . Parts Damaged . | . . . Bothacking | -11 -10 -10 ------------ Run | Yrd Mat Min Used RIF Installer . | . . . Robots Hacked . | . . . Non-combat . | . . . Combat . | . . . Robot Hacks Applied . | . . . Relay Couplers Released . | . . . Fabnet Peak Effective % . | . . . Robots Rewired . | . . . Allies Hacked . | . . . Hacks Repelled . | . . . Allies | -11 -10 -10 -------- Run | Yrd Mat Min Total Allies . | . . . Largest Group . | . . . Highest-Rated Group . | . . . Highest-Rated Ally . | . . . Total Orders . | . . . Ally Attacks . | . . . Total Damage . | . . . Kills . | . . . Allies Corrupted . | . . . Allies Melted . | . . . Intel | -11 -10 -10 ------- Run | Yrd Mat Min Robot Analysis Total . | . . . Derelict Logs Recovered 1 | . . 1 Drone Launches . | . . . Drone Recoveries . | . . . Exploration | -11 -10 -10 ------------- Run | Yrd Mat Min Turns Passed 497 | 125 333 39 Spaces Moved 368 | 72 264 32 Core . | . . . Treads . | . . . Legs 27 | 27 . . Wheels 139 | 45 62 32 Hover 202 | . 202 . Flight . | . . . Fastest Speed 56 | 80 56 80 Average Speed 72 | 100 64 80 Slowest Speed 125 | 120 125 80 Overloaded Moves . | . . . Propulsion Burnouts . | . . . Robots Hopped . | . . . Cave-ins Triggered . | . . . Exploration Rate (%) 17 | 5 38 10 Regions Visited 2 Branch Regions 1 Pre-discovered Areas . | . . . Known Exits Taken . | . . . Unknown Exits Taken 2 | 1 1 . Scrap Searched 1 | . . 1 Spaces Dug . | . . . Terrain Destroyed . | . . . Melee . | . . . Projectile . | . . . AOE . | . . . Terrain Rammed . | . . . Walls Destroyed . | . . . Machines Disabled . | . . . Actions | -11 -10 -10 --------- Run | Yrd Mat Min Total 506 | 99 366 41 Wait 49 | 2 44 3 Move 366 | 71 263 32 Hop . | . . . Pick Up 7 | 4 3 . Fast Attach 10 | 2 6 2 Attach 2 | 1 1 . Detach . | . . . Swap 5 | 1 4 . Drop 13 | 4 9 . Fire 47 | 14 33 . Melee 4 | . . 4 Ram 3 | . 3 . Kick . | . . . Crush . | . . . Escape Stasis . | . . . Rewire . | . . . Trap . | . . . Miscellaneous . | . . . Route ------- -11/Scrapyard -10/Materials -10/Mines History --------- Turn | Location | Event 1 | -11/Scrapyard | Discovered new exit (range 3) 126 | -11/Scrapyard | Entered Materials 230 | -10/Materials | Repaired Hover Unit 411 | -10/Materials | Core integrity fell below 50% 438 | -10/Materials | Lost 3 parts (1p1n1u) 450 | -10/Materials | Core integrity fell below 20% 455 | -10/Materials | Discovered new exit (range 6) 459 | -10/Materials | Entered Mines 468 | -10/Mines | A weapon hastily lodged in a ceiling crevice suddenly fell to the ground 480 | -10/Mines | Lost 3 parts (1n2w) 488 | -10/Mines | Learned location of 1 exit from Materials 498 | -10/Mines | Destroyed by S-10 Pest with Light Assault Rifle Last Messages --------------- 00441_ Broken Assault Rifle destroyed. 00445_ Acquired Wheel. 00445_ K-01 Serf collects debris. 00449_ Sml. Laser destroyed. 00451_ K-01 Serf collects debris. 00455_ EXIT=FOUND LOCATION=UNKNOWN GOAL=ESCAPE 00468_ A Mak. Spear has been hastily shoved under some rubble with a note attached: "Stab them where it hurts!" 00470_ Acquired Mak. Spear. 00478_ Searching scrap... 00478_ Found Signal Interpreter. 00478_ Found 39 Matter. 00479_ Acquired 38 matter. 00480_ Acquired Signal Interpreter. 00482_ Acquired 1 matter. 00488_ Acquired derelict log, extracted data. Data stored: Materials exits (x1). 00488_ Wheel destroyed. Map ----- +----------------------------------------------------+ | ?????????????????????????????????????????????????? | | ?????????????????????????????????????????????????? | | ?????????????????????????????????????????????????? | | ?????????????????????????????????????????????????? | | ?????????????????????????????????????????????????? | | ?????????????????????????????????????????????????? | | ?????????????????????????????????????????????????? | | ?????????????????????????????????????????????????? | | ?????????????????????????????????????????????????? | | ?????????????????????????????????????????????????? | | ?????????????????????????????????????????????????? | | ?????????????????????????????????????????????????? | | ?????????????????????????????????????????????????? | | ??????????????????????????###????????????????????? | | ????????????????????????? ????????????????????? | | ????????????????????????? ????????????????????? | | ?????????????????????????" ?????????????????????? | | ?????????????????????????" ?????????????????????? | | ?????????????????????????" ?????????????????????? | | ????????????????????????? ?????????????????????? | | ????????????????????????? ?????????????????????? | | ????????????????????????? ?????????????????????? | | ?????????????????????????# #?????????????????????? | | ?????????????????????????# #?????????????????????? | | ???????????????????# #####s####??????????????????? | | ???????????????????# @ #??????????????????? | | ???????????????????########## #??????????????????? | | ????????????????????????????# #??????????????????? | | ????????????????????????????# #??????????????????? | | ??????????????????????# ##### ###????????????????? | | ??????????????????????# ##???????????????? | | ??????????????????????# ##??????????????? | | ??????????????????????###### #####??????????? | | ???????????????????????????# ## ##?????????? | | ???????????????????????????####### #?????????? | | ?????????????????????????????????# #?????????? | | ?????????????????????????????????## #?????????? | | ??????????????????????????????????## ##????????? | | ???????????????????????????????????## #?????#??? | | ????????????????????????????????????# ##??? #??? | | ????????????????????????????????????# #### #??? | | ????????????????????????????????????## #??# | | ?????????????????????????????????????## ## ##### | | ??????????????????????????????????????##### #### | | ??????????????????????????????????????????# | | ??????????????????????????????????????????###### | | ???????????????????????????????????????????????# | | ??????????????????????????????????????????????? | | ??????????????????????????????????????????????? | | ??????????????????????????????????????????????? | +----------------------------------------------------+ Best States ------------- Heat Dissipation 25 Energy Generation 10 Energy Capacity 125 Matter Stores 300 Matter Capacity 300 Sight Range 16 Terrain Scan Density 10 Evasion (%) 55 Item Schematics ----------------- None Robot Schematics ------------------ None Fabricated ------------ Nothing Alien Tech Used ----------------- None Achievements -------------- None Challenges ------------ None Game ------ Seed MinesnifferCarbideSuit Manual? 0 Play Time 00:05:13 Cumulative 887.7 hours Start 2024.08.26 @ 11:39:28 End 2024.08.26 @ 11:45:22 Sessions 1 Manual Loads 0 Difficulty Rogue Special Mode None Game No. 1078 Rogue 799 Adventurer 124 Explorer 155 Win Type - Total 37 Types 28/0/7/1/0/0/0/1/0 Lore% 78 Gallery% 89 Achievement% 78 Wizard Run 0 Options --------- Layout 0 ASCII 0 Keyboard 1 Movement Numpad Keybinds 0 Fullscreen 2 Font 18/X11 Map View 76x50 Zoom Use 2% Tactical HUD 1 Map Filters NONE Filters NONE Steam 1 RUN: 65010140-4bff-4db2-976a-368248d29fef